{"text_format":"1","workbook":"xlsx","n_sheets":4,"sheets":["VBASamples","ComboRanges","Europe","$GeoCache$"],"not_rendered":{"charts":0,"images":16,"macros":1,"external_links":0,"defined_names":5,"comments":0,"pivot_tables":0},"unopened":[],"bounds":{"document_bytes":16777216,"sheet_cells":100000,"rows_first":2000,"rows_last":500,"rows_between":2000,"halvings":0,"cell_chars":16384,"cell_head_chars":4096},"cells_cut":0,"cells_raw":0,"read":"whole","date_system":"1900"}

{"sheet":"VBASamples","index":0,"n_rows":18,"n_cols":7,"rows_kept":18,"cut":false,"hidden":false,"merged":[]}
[null,null,null,null,null,{"$f":"_xll.GeodesiX.UDF.Geodesix(\"clicked\")","v":""},{"$f":"_xll.GeodesiX.UDF.Heat(2,1,10)","v":"3000C7"}]
[null,"This workbook shows samples of Geodesix's VBA functions"]
[]
[null,"Name","Type","Description","Arguments","VBA Sample","Try it!"]
[null,"clicked","Function","Returns the coordinates where the user last clicked on the map (that is displayed in the 'Find' field in the toolbar). Returns 0 if never clicked",null,"MsgBox Clicked"]
[null,"default","Method","Restores the default map",null,"Default"]
[null,"drawcircle","Method","Draws a circle on the map","id, lat, lng, radius, text, strokecolour, strokeopacity,  strokeweight, fillcolour, fillopacity",{"$f":"_xll.GeodesiX.UDF.JavaScript(\"drawCircle(1, 48.868916, 2.37793, 100000, 'Paris', 'navy', 1, 2, 'yellow', 0.2\")","v":""}]
[null,"drawline","Method","Draws a line on the map","id, lat1, lon1, lat2, lon2, text, strokecolour, strokeopacity,  strokeweight","DrawLine 4, 45.825284, 1.273252, 46.19155, 6.129209, \"Dijon-Geneva\", \"fuchsia\", 0.8, 6"]
[null,"drawmarker","Method","Creates an icon on the map. The title appears when hovering over the icon. Clicking the icon displays the HTML, formatted","id, latitude, longitude, icon, title, html","DrawMarker 5, 47.313063, 5.041563, \"http://maps.google.com/mapfiles/kml/pal2/icon11.png\", \"Dijon Church\""]
[null,"help","Function","Displays the help page ","Help file","Help index.html"]
[null,"language","Function","Sets the map's language. Returns the current language","Language code as listed at http://code.google.com/apis/maps/faq.html#languagesupport","Language ru"]
[null,"navigate","Method","Displays a webpage instead of a map. Use 'default' to go back to the map page","A URL","Navigate \"http://www.google.ch/?hl=en\""]
[null,"position","Function","Docks the map pane. Returns where it is currently docked","Top, Bottom, Left, Right","Position right"]
[null,"region","Function","Sets the map's region See http://code.google.com/apis/maps/documentation/geocoding/#RegionCodes","Language code as listed at http://code.google.com/apis/maps/faq.html#languagesupport","Region us"]
[null,"showlocation","Method","Displays a place","The name of a place","ShowLocation \"Indonesia\""]
[null,"showsheet","Method","Displays a map sheet. This is equivalent to selecting a sheet in the map sheet dropdown in the map pane toolbar, but without displaying any popup messages. If the sheet doesn't exist or isn't in the correct format, nothing happens.","Sheet name","ShowSheet \"Europe\""]
[null,"url","Function","Displays the url that the map pane is currently displaying",null,"MsgBox URL"]
[null,"zoomtoicons","Method","Zooms the map to fit everything that's been drawn (icons, circles, directions, etc)",null,"ZoomToIcons"]

{"sheet":"ComboRanges","index":1,"n_rows":6,"n_cols":4,"rows_kept":6,"cut":false,"hidden":false,"merged":[]}
["true","en","top","au"]
["false","fr","left","ca"]
[null,"ru","right","no"]
[null,"de","bottom","de"]
[null,"ko",null,"ko"]
[null,null,null,"jp"]

{"sheet":"Europe","index":2,"n_rows":27,"n_cols":22,"rows_kept":27,"cut":false,"hidden":false,"merged":[]}
["title","latitude","longitude","icon","html","status","State","Capital","Constitutional name","Joined","Population","km²","GDP","Currency","State","Capital","Constitutional name(s)","Joined","Population","km²","GDP","Currency"]
[{"$f":"H2 & \" \" & G2","v":"Vienna Austria"},{"$f":"_xll.GeodesiX.UDF.Geocode(B$1,$A2)","v":48.208069600000002},{"$f":"_xll.GeodesiX.UDF.Geocode(C$1,$A2)","v":16.371309499999999},"http://upload.wikimedia.org/wikipedia/commons/thumb/4/41/Flag_of_Austria.svg/22px-Flag_of_Austria.svg.png",{"$f":"\"<table>\"&O2&P2&Q2&R2&S2&T2&U2&V2&\"</table>\"","v":"<table><tr><td>State</td><td>Austria</td></tr><tr><td>Capital</td><td>Vienna</td></tr><tr><td>Constitutional name</td><td>Republik Österreich</td></tr><tr><td>Joined</td><td>1995</td></tr><tr><td>Population</td><td>8,372,930</td></tr><tr><td>km²</td><td>83,871</td></tr><tr><td>GDP</td><td>38,838</td></tr><tr><td>Currency</td><td>Euro</td></tr></table>"},{"$f":"_xll.GeodesiX.UDF.Geocode(F$1,$A2)","v":"OK"},"Austria","Vienna","Republik Österreich",1995,"8,372,930","83,871","38,838","Euro",{"$f":"\"<tr><td>\" & G$1& \"</td><td>\" & G2 & \"</td></tr>\"","v":"<tr><td>State</td><td>Austria</td></tr>"},"<tr><td>Capital</td><td>Vienna</td></tr>","<tr><td>Constitutional name</td><td>Republik Österreich</td></tr>","<tr><td>Joined</td><td>1995</td></tr>","<tr><td>Population</td><td>8,372,930</td></tr>","<tr><td>km²</td><td>83,871</td></tr>","<tr><td>GDP</td><td>38,838</td></tr>","<tr><td>Currency</td><td>Euro</td></tr>"]
[{"$f":"H3 & \", \" & G3","v":"Brussels, Belgium"},{"$f":"_xll.GeodesiX.UDF.Geocode(B$1,$A3)","v":50.826045299999997},{"$f":"_xll.GeodesiX.UDF.Geocode(C$1,$A3)","v":4.3802051999999998},"http://upload.wikimedia.org/wikipedia/commons/thumb/9/92/Flag_of_Belgium_%28civil%29.svg/22px-Flag_of_Belgium_%28civil%29.svg.png",{"$f":"\"<table>\"&O3&P3&Q3&R3&S3&T3&U3&V3&\"</table>\"","v":"<table><tr><td>State</td><td>Belgium</td></tr><tr><td>Capital</td><td>Brussels</td></tr><tr><td>Constitutional name</td><td>Koninkrijk België</td></tr><tr><td>Joined</td><td>Founder</td></tr><tr><td>Population</td><td>10,827,519</td></tr><tr><td>km²</td><td>30,528</td></tr><tr><td>GDP</td><td>35,421</td></tr><tr><td>Currency</td><td>Euro</td></tr></table>"},{"$f":"_xll.GeodesiX.UDF.Geocode(F$1,$A3)","v":"OK"},"Belgium","Brussels","Koninkrijk België","Founder","10,827,519","30,528","35,421","Euro","<tr><td>State</td><td>Belgium</td></tr>","<tr><td>Capital</td><td>Brussels</td></tr>","<tr><td>Constitutional name</td><td>Koninkrijk België</td></tr>","<tr><td>Joined</td><td>Founder</td></tr>","<tr><td>Population</td><td>10,827,519</td></tr>","<tr><td>km²</td><td>30,528</td></tr>","<tr><td>GDP</td><td>35,421</td></tr>","<tr><td>Currency</td><td>Euro</td></tr>"]
["Sofia, Bulgaria",{"$f":"_xll.GeodesiX.UDF.Geocode(B$1,$A4)","v":42.697708200000001},{"$f":"_xll.GeodesiX.UDF.Geocode(C$1,$A4)","v":23.3218675},"http://upload.wikimedia.org/wikipedia/commons/thumb/9/9a/Flag_of_Bulgaria.svg/22px-Flag_of_Bulgaria.svg.png","<table><tr><td>State</td><td>Bulgaria</td></tr><tr><td>Capital</td><td>Sofia</td></tr><tr><td>Constitutional name</td><td>Република България</td></tr><tr><td>Joined</td><td>2007</td></tr><tr><td>Population</td><td>7,576,751</td></tr><tr><td>km²</td><td>110,910</td></tr><tr><td>GDP</td><td>11,900</td></tr><tr><td>Currency</td><td>Bulgarian Lev</td></tr></table>",{"$f":"_xll.GeodesiX.UDF.Geocode(F$1,$A4)","v":"OK"},"Bulgaria","Sofia","Република България",2007,"7,576,751","110,910","11,900","Bulgarian Lev","<tr><td>State</td><td>Bulgaria</td></tr>","<tr><td>Capital</td><td>Sofia</td></tr>","<tr><td>Constitutional name</td><td>Република България</td></tr>","<tr><td>Joined</td><td>2007</td></tr>","<tr><td>Population</td><td>7,576,751</td></tr>","<tr><td>km²</td><td>110,910</td></tr>","<tr><td>GDP</td><td>11,900</td></tr>","<tr><td>Currency</td><td>Bulgarian Lev</td></tr>"]
["Nicosia, Cyprus",{"$f":"_xll.GeodesiX.UDF.Geocode(B$1,$A5)","v":35.1855659},{"$f":"_xll.GeodesiX.UDF.Geocode(C$1,$A5)","v":33.382276400000002},"http://upload.wikimedia.org/wikipedia/commons/thumb/d/d4/Flag_of_Cyprus.svg/22px-Flag_of_Cyprus.svg.png","<table><tr><td>State</td><td>Cyprus</td></tr><tr><td>Capital</td><td>Nicosia</td></tr><tr><td>Constitutional name</td><td>Κυπριακή Δημοκρατία</td></tr><tr><td>Joined</td><td>2004</td></tr><tr><td>Population</td><td>801,851</td></tr><tr><td>km²</td><td>9,251</td></tr><tr><td>GDP</td><td>28,544</td></tr><tr><td>Currency</td><td>Euro</td></tr></table>",{"$f":"_xll.GeodesiX.UDF.Geocode(F$1,$A5)","v":"OK"},"Cyprus","Nicosia","Κυπριακή Δημοκρατία",2004,"801,851","9,251","28,544","Euro","<tr><td>State</td><td>Cyprus</td></tr>","<tr><td>Capital</td><td>Nicosia</td></tr>","<tr><td>Constitutional name</td><td>Κυπριακή Δημοκρατία</td></tr>","<tr><td>Joined</td><td>2004</td></tr>","<tr><td>Population</td><td>801,851</td></tr>","<tr><td>km²</td><td>9,251</td></tr>","<tr><td>GDP</td><td>28,544</td></tr>","<tr><td>Currency</td><td>Euro</td></tr>"]
["Prague, Czech Republic",{"$f":"_xll.GeodesiX.UDF.Geocode(B$1,$A6)","v":50.075538100000003},{"$f":"_xll.GeodesiX.UDF.Geocode(C$1,$A6)","v":14.4378005},"http://upload.wikimedia.org/wikipedia/commons/thumb/c/cb/Flag_of_the_Czech_Republic.svg/22px-Flag_of_the_Czech_Republic.svg.png","<table><tr><td>State</td><td>Czech Republic</td></tr><tr><td>Capital</td><td>Prague</td></tr><tr><td>Constitutional name</td><td>Česká republika</td></tr><tr><td>Joined</td><td>2004</td></tr><tr><td>Population</td><td>10,512,397</td></tr><tr><td>km²</td><td>78,866</td></tr><tr><td>GDP</td><td>24,093</td></tr><tr><td>Currency</td><td>Czech koruna</td></tr></table>",{"$f":"_xll.GeodesiX.UDF.Geocode(F$1,$A6)","v":"OK"},"Czech Republic","Prague","Česká republika",2004,"10,512,397","78,866","24,093","Czech koruna","<tr><td>State</td><td>Czech Republic</td></tr>","<tr><td>Capital</td><td>Prague</td></tr>","<tr><td>Constitutional name</td><td>Česká republika</td></tr>","<tr><td>Joined</td><td>2004</td></tr>","<tr><td>Population</td><td>10,512,397</td></tr>","<tr><td>km²</td><td>78,866</td></tr>","<tr><td>GDP</td><td>24,093</td></tr>","<tr><td>Currency</td><td>Czech koruna</td></tr>"]
["Copenhagen, Denmark",{"$f":"_xll.GeodesiX.UDF.Geocode(B$1,$A7)","v":55.676096800000003},{"$f":"_xll.GeodesiX.UDF.Geocode(C$1,$A7)","v":12.568337100000001},"http://upload.wikimedia.org/wikipedia/commons/thumb/9/9c/Flag_of_Denmark.svg/22px-Flag_of_Denmark.svg.png","<table><tr><td>State</td><td>Denmark</td></tr><tr><td>Capital</td><td>Copenhagen</td></tr><tr><td>Constitutional name</td><td>Kongeriget Danmark</td></tr><tr><td>Joined</td><td>1973</td></tr><tr><td>Population</td><td>5,547,088</td></tr><tr><td>km²</td><td>43,094</td></tr><tr><td>GDP</td><td>35,757</td></tr><tr><td>Currency</td><td>Danish krone</td></tr></table>",{"$f":"_xll.GeodesiX.UDF.Geocode(F$1,$A7)","v":"OK"},"Denmark","Copenhagen","Kongeriget Danmark",1973,"5,547,088","43,094","35,757","Danish krone","<tr><td>State</td><td>Denmark</td></tr>","<tr><td>Capital</td><td>Copenhagen</td></tr>","<tr><td>Constitutional name</td><td>Kongeriget Danmark</td></tr>","<tr><td>Joined</td><td>1973</td></tr>","<tr><td>Population</td><td>5,547,088</td></tr>","<tr><td>km²</td><td>43,094</td></tr>","<tr><td>GDP</td><td>35,757</td></tr>","<tr><td>Currency</td><td>Danish krone</td></tr>"]
["Tallinn, Estonia",{"$f":"_xll.GeodesiX.UDF.Geocode(B$1,$A8)","v":59.436960800000001},{"$f":"_xll.GeodesiX.UDF.Geocode(C$1,$A8)","v":24.7535746},"http://upload.wikimedia.org/wikipedia/commons/thumb/8/8f/Flag_of_Estonia.svg/22px-Flag_of_Estonia.svg.png","<table><tr><td>State</td><td>Estonia</td></tr><tr><td>Capital</td><td>Tallinn</td></tr><tr><td>Constitutional name</td><td>Eesti Vabariik</td></tr><tr><td>Joined</td><td>2004</td></tr><tr><td>Population</td><td>1,340,274</td></tr><tr><td>km²</td><td>45,226</td></tr><tr><td>GDP</td><td>17,908</td></tr><tr><td>Currency</td><td>Euro</td></tr></table>",{"$f":"_xll.GeodesiX.UDF.Geocode(F$1,$A8)","v":"OK"},"Estonia","Tallinn","Eesti Vabariik",2004,"1,340,274","45,226","17,908","Euro","<tr><td>State</td><td>Estonia</td></tr>","<tr><td>Capital</td><td>Tallinn</td></tr>","<tr><td>Constitutional name</td><td>Eesti Vabariik</td></tr>","<tr><td>Joined</td><td>2004</td></tr>","<tr><td>Population</td><td>1,340,274</td></tr>","<tr><td>km²</td><td>45,226</td></tr>","<tr><td>GDP</td><td>17,908</td></tr>","<tr><td>Currency</td><td>Euro</td></tr>"]
["Helsinki, Finland",{"$f":"_xll.GeodesiX.UDF.Geocode(B$1,$A9)","v":60.169855699999999},{"$f":"_xll.GeodesiX.UDF.Geocode(C$1,$A9)","v":24.938379000000001},"http://upload.wikimedia.org/wikipedia/commons/thumb/b/bc/Flag_of_Finland.svg/22px-Flag_of_Finland.svg.png","<table><tr><td>State</td><td>Finland</td></tr><tr><td>Capital</td><td>Helsinki</td></tr><tr><td>Constitutional name</td><td>Suomen tasavalta</td></tr><tr><td>Joined</td><td>1995</td></tr><tr><td>Population</td><td>5,350,475</td></tr><tr><td>km²</td><td>338,145</td></tr><tr><td>GDP</td><td>33,555</td></tr><tr><td>Currency</td><td>Euro</td></tr></table>",{"$f":"_xll.GeodesiX.UDF.Geocode(F$1,$A9)","v":"OK"},"Finland","Helsinki","Suomen tasavalta",1995,"5,350,475","338,145","33,555","Euro","<tr><td>State</td><td>Finland</td></tr>","<tr><td>Capital</td><td>Helsinki</td></tr>","<tr><td>Constitutional name</td><td>Suomen tasavalta</td></tr>","<tr><td>Joined</td><td>1995</td></tr>","<tr><td>Population</td><td>5,350,475</td></tr>","<tr><td>km²</td><td>338,145</td></tr>","<tr><td>GDP</td><td>33,555</td></tr>","<tr><td>Currency</td><td>Euro</td></tr>"]
["Paris, France",{"$f":"_xll.GeodesiX.UDF.Geocode(B$1,$A10)","v":48.857547500000003},{"$f":"_xll.GeodesiX.UDF.Geocode(C$1,$A10)","v":2.3513765000000002},"http://upload.wikimedia.org/wikipedia/commons/thumb/c/c3/Flag_of_France.svg/22px-Flag_of_France.svg.png","<table><tr><td>State</td><td>France</td></tr><tr><td>Capital</td><td>Paris</td></tr><tr><td>Constitutional name</td><td>République française</td></tr><tr><td>Joined</td><td>Founder</td></tr><tr><td>Population</td><td>64,709,480</td></tr><tr><td>km²</td><td>674,843</td></tr><tr><td>GDP</td><td>33,678</td></tr><tr><td>Currency</td><td>Euro</td></tr></table>",{"$f":"_xll.GeodesiX.UDF.Geocode(F$1,$A10)","v":"OK"},"France","Paris","République française","Founder","64,709,480","674,843","33,678","Euro","<tr><td>State</td><td>France</td></tr>","<tr><td>Capital</td><td>Paris</td></tr>","<tr><td>Constitutional name</td><td>République française</td></tr>","<tr><td>Joined</td><td>Founder</td></tr>","<tr><td>Population</td><td>64,709,480</td></tr>","<tr><td>km²</td><td>674,843</td></tr>","<tr><td>GDP</td><td>33,678</td></tr>","<tr><td>Currency</td><td>Euro</td></tr>"]
["Berlin, Germany",{"$f":"_xll.GeodesiX.UDF.Geocode(B$1,$A11)","v":52.520006600000002},{"$f":"_xll.GeodesiX.UDF.Geocode(C$1,$A11)","v":13.404954},"http://upload.wikimedia.org/wikipedia/commons/thumb/b/ba/Flag_of_Germany.svg/22px-Flag_of_Germany.svg.png","<table><tr><td>State</td><td>Germany</td></tr><tr><td>Capital</td><td>Berlin</td></tr><tr><td>Constitutional name</td><td>Bundesrepublik Deutschland</td></tr><tr><td>Joined</td><td>Founder</td></tr><tr><td>Population</td><td>81,757,595</td></tr><tr><td>km²</td><td>357,050</td></tr><tr><td>GDP</td><td>34,212</td></tr><tr><td>Currency</td><td>Euro</td></tr></table>",{"$f":"_xll.GeodesiX.UDF.Geocode(F$1,$A11)","v":"OK"},"Germany","Berlin","Bundesrepublik Deutschland","Founder","81,757,595","357,050","34,212","Euro","<tr><td>State</td><td>Germany</td></tr>","<tr><td>Capital</td><td>Berlin</td></tr>","<tr><td>Constitutional name</td><td>Bundesrepublik Deutschland</td></tr>","<tr><td>Joined</td><td>Founder</td></tr>","<tr><td>Population</td><td>81,757,595</td></tr>","<tr><td>km²</td><td>357,050</td></tr>","<tr><td>GDP</td><td>34,212</td></tr>","<tr><td>Currency</td><td>Euro</td></tr>"]
["Athens, Greece",{"$f":"_xll.GeodesiX.UDF.Geocode(B$1,$A12)","v":37.983809600000001},{"$f":"_xll.GeodesiX.UDF.Geocode(C$1,$A12)","v":23.727538800000001},"http://upload.wikimedia.org/wikipedia/commons/thumb/5/5c/Flag_of_Greece.svg/22px-Flag_of_Greece.svg.png","<table><tr><td>State</td><td>Greece</td></tr><tr><td>Capital</td><td>Athens</td></tr><tr><td>Constitutional name</td><td>Ελληνική Δημοκρατία</td></tr><tr><td>Joined</td><td>1981</td></tr><tr><td>Population</td><td>11,125,179</td></tr><tr><td>km²</td><td>131,990</td></tr><tr><td>GDP</td><td>29,881</td></tr><tr><td>Currency</td><td>Euro</td></tr></table>",{"$f":"_xll.GeodesiX.UDF.Geocode(F$1,$A12)","v":"OK"},"Greece","Athens","Ελληνική Δημοκρατία",1981,"11,125,179","131,990","29,881","Euro","<tr><td>State</td><td>Greece</td></tr>","<tr><td>Capital</td><td>Athens</td></tr>","<tr><td>Constitutional name</td><td>Ελληνική Δημοκρατία</td></tr>","<tr><td>Joined</td><td>1981</td></tr>","<tr><td>Population</td><td>11,125,179</td></tr>","<tr><td>km²</td><td>131,990</td></tr>","<tr><td>GDP</td><td>29,881</td></tr>","<tr><td>Currency</td><td>Euro</td></tr>"]
["Budapest, Hungary",{"$f":"_xll.GeodesiX.UDF.Geocode(B$1,$A13)","v":47.497911999999999},{"$f":"_xll.GeodesiX.UDF.Geocode(C$1,$A13)","v":19.040234999999999},"http://upload.wikimedia.org/wikipedia/commons/thumb/c/c1/Flag_of_Hungary.svg/22px-Flag_of_Hungary.svg.png","<table><tr><td>State</td><td>Hungary</td></tr><tr><td>Capital</td><td>Budapest</td></tr><tr><td>Constitutional name</td><td>Magyar Köztársaság</td></tr><tr><td>Joined</td><td>2004</td></tr><tr><td>Population</td><td>10,013,628</td></tr><tr><td>km²</td><td>93,030</td></tr><tr><td>GDP</td><td>18,566</td></tr><tr><td>Currency</td><td>Hungarian forint</td></tr></table>",{"$f":"_xll.GeodesiX.UDF.Geocode(F$1,$A13)","v":"OK"},"Hungary","Budapest","Magyar Köztársaság",2004,"10,013,628","93,030","18,566","Hungarian forint","<tr><td>State</td><td>Hungary</td></tr>","<tr><td>Capital</td><td>Budapest</td></tr>","<tr><td>Constitutional name</td><td>Magyar Köztársaság</td></tr>","<tr><td>Joined</td><td>2004</td></tr>","<tr><td>Population</td><td>10,013,628</td></tr>","<tr><td>km²</td><td>93,030</td></tr>","<tr><td>GDP</td><td>18,566</td></tr>","<tr><td>Currency</td><td>Hungarian forint</td></tr>"]
["Dublin, Ireland",{"$f":"_xll.GeodesiX.UDF.Geocode(B$1,$A14)","v":53.3498053},{"$f":"_xll.GeodesiX.UDF.Geocode(C$1,$A14)","v":-6.2603096999999996},"http://upload.wikimedia.org/wikipedia/commons/thumb/4/45/Flag_of_Ireland.svg/22px-Flag_of_Ireland.svg.png","<table><tr><td>State</td><td>Ireland</td></tr><tr><td>Capital</td><td>Dublin</td></tr><tr><td>Constitutional name</td><td>Éire</td></tr><tr><td>Joined</td><td>1973</td></tr><tr><td>Population</td><td>4,467,854</td></tr><tr><td>km²</td><td>70,273</td></tr><tr><td>GDP</td><td>39,468</td></tr><tr><td>Currency</td><td>Euro</td></tr></table>",{"$f":"_xll.GeodesiX.UDF.Geocode(F$1,$A14)","v":"OK"},"Ireland","Dublin","Éire",1973,"4,467,854","70,273","39,468","Euro","<tr><td>State</td><td>Ireland</td></tr>","<tr><td>Capital</td><td>Dublin</td></tr>","<tr><td>Constitutional name</td><td>Éire</td></tr>","<tr><td>Joined</td><td>1973</td></tr>","<tr><td>Population</td><td>4,467,854</td></tr>","<tr><td>km²</td><td>70,273</td></tr>","<tr><td>GDP</td><td>39,468</td></tr>","<tr><td>Currency</td><td>Euro</td></tr>"]
["Rome, Italy",{"$f":"_xll.GeodesiX.UDF.Geocode(B$1,$A15)","v":41.896706799999997},{"$f":"_xll.GeodesiX.UDF.Geocode(C$1,$A15)","v":12.4822025},"http://upload.wikimedia.org/wikipedia/commons/thumb/0/03/Flag_of_Italy.svg/22px-Flag_of_Italy.svg.png","<table><tr><td>State</td><td>Italy</td></tr><tr><td>Capital</td><td>Rome</td></tr><tr><td>Constitutional name</td><td>Repubblica italiana</td></tr><tr><td>Joined</td><td>Founder</td></tr><tr><td>Population</td><td>60,397,353</td></tr><tr><td>km²</td><td>301,318</td></tr><tr><td>GDP</td><td>29,109</td></tr><tr><td>Currency</td><td>Euro</td></tr></table>",{"$f":"_xll.GeodesiX.UDF.Geocode(F$1,$A15)","v":"OK"},"Italy","Rome","Repubblica italiana","Founder","60,397,353","301,318","29,109","Euro","<tr><td>State</td><td>Italy</td></tr>","<tr><td>Capital</td><td>Rome</td></tr>","<tr><td>Constitutional name</td><td>Repubblica italiana</td></tr>","<tr><td>Joined</td><td>Founder</td></tr>","<tr><td>Population</td><td>60,397,353</td></tr>","<tr><td>km²</td><td>301,318</td></tr>","<tr><td>GDP</td><td>29,109</td></tr>","<tr><td>Currency</td><td>Euro</td></tr>"]
["Riga, Latvia",{"$f":"_xll.GeodesiX.UDF.Geocode(B$1,$A16)","v":56.967694100000003},{"$f":"_xll.GeodesiX.UDF.Geocode(C$1,$A16)","v":24.105622100000001},"http://upload.wikimedia.org/wikipedia/commons/thumb/8/84/Flag_of_Latvia.svg/22px-Flag_of_Latvia.svg.png","<table><tr><td>State</td><td>Latvia</td></tr><tr><td>Capital</td><td>Riga</td></tr><tr><td>Constitutional name</td><td>Latvijas Republika</td></tr><tr><td>Joined</td><td>2004</td></tr><tr><td>Population</td><td>2,248,961</td></tr><tr><td>km²</td><td>64,589</td></tr><tr><td>GDP</td><td>14,254</td></tr><tr><td>Currency</td><td>Latvian lats</td></tr></table>",{"$f":"_xll.GeodesiX.UDF.Geocode(F$1,$A16)","v":"OK"},"Latvia","Riga","Latvijas Republika",2004,"2,248,961","64,589","14,254","Latvian lats","<tr><td>State</td><td>Latvia</td></tr>","<tr><td>Capital</td><td>Riga</td></tr>","<tr><td>Constitutional name</td><td>Latvijas Republika</td></tr>","<tr><td>Joined</td><td>2004</td></tr>","<tr><td>Population</td><td>2,248,961</td></tr>","<tr><td>km²</td><td>64,589</td></tr>","<tr><td>GDP</td><td>14,254</td></tr>","<tr><td>Currency</td><td>Latvian lats</td></tr>"]
["Vilnius, Lithuania",{"$f":"_xll.GeodesiX.UDF.Geocode(B$1,$A17)","v":54.687155500000003},{"$f":"_xll.GeodesiX.UDF.Geocode(C$1,$A17)","v":25.279651399999999},"http://upload.wikimedia.org/wikipedia/commons/thumb/1/11/Flag_of_Lithuania.svg/22px-Flag_of_Lithuania.svg.png","<table><tr><td>State</td><td>Lithuania</td></tr><tr><td>Capital</td><td>Vilnius</td></tr><tr><td>Constitutional name</td><td>Lietuvos Respublika</td></tr><tr><td>Joined</td><td>2004</td></tr><tr><td>Population</td><td>3,329,227</td></tr><tr><td>km²</td><td>65,303</td></tr><tr><td>GDP</td><td>16,542</td></tr><tr><td>Currency</td><td>Lithuanian litas</td></tr></table>",{"$f":"_xll.GeodesiX.UDF.Geocode(F$1,$A17)","v":"OK"},"Lithuania","Vilnius","Lietuvos Respublika",2004,"3,329,227","65,303","16,542","Lithuanian litas","<tr><td>State</td><td>Lithuania</td></tr>","<tr><td>Capital</td><td>Vilnius</td></tr>","<tr><td>Constitutional name</td><td>Lietuvos Respublika</td></tr>","<tr><td>Joined</td><td>2004</td></tr>","<tr><td>Population</td><td>3,329,227</td></tr>","<tr><td>km²</td><td>65,303</td></tr>","<tr><td>GDP</td><td>16,542</td></tr>","<tr><td>Currency</td><td>Lithuanian litas</td></tr>"]
["Luxembourg, Luxembourg",{"$f":"_xll.GeodesiX.UDF.Geocode(B$1,$A18)","v":49.815272999999998},{"$f":"_xll.GeodesiX.UDF.Geocode(C$1,$A18)","v":6.1295830000000002},"http://upload.wikimedia.org/wikipedia/commons/thumb/d/da/Flag_of_Luxembourg.svg/22px-Flag_of_Luxembourg.svg.png","<table><tr><td>State</td><td>Luxembourg</td></tr><tr><td>Capital</td><td>Luxembourg</td></tr><tr><td>Constitutional name</td><td>Grand-Duché de Luxembourg</td></tr><tr><td>Joined</td><td>Founder</td></tr><tr><td>Population</td><td>502,207</td></tr><tr><td>km²</td><td>2,586</td></tr><tr><td>GDP</td><td>78,395</td></tr><tr><td>Currency</td><td>Euro</td></tr></table>",{"$f":"_xll.GeodesiX.UDF.Geocode(F$1,$A18)","v":"OK"},"Luxembourg","Luxembourg","Grand-Duché de Luxembourg","Founder","502,207","2,586","78,395","Euro","<tr><td>State</td><td>Luxembourg</td></tr>","<tr><td>Capital</td><td>Luxembourg</td></tr>","<tr><td>Constitutional name</td><td>Grand-Duché de Luxembourg</td></tr>","<tr><td>Joined</td><td>Founder</td></tr>","<tr><td>Population</td><td>502,207</td></tr>","<tr><td>km²</td><td>2,586</td></tr>","<tr><td>GDP</td><td>78,395</td></tr>","<tr><td>Currency</td><td>Euro</td></tr>"]
["Valletta, Malta",{"$f":"_xll.GeodesiX.UDF.Geocode(B$1,$A19)","v":35.899237499999998},{"$f":"_xll.GeodesiX.UDF.Geocode(C$1,$A19)","v":14.5140996},"http://upload.wikimedia.org/wikipedia/commons/thumb/7/73/Flag_of_Malta.svg/22px-Flag_of_Malta.svg.png","<table><tr><td>State</td><td>Malta</td></tr><tr><td>Capital</td><td>Valletta</td></tr><tr><td>Constitutional name</td><td>Repubblika ta' Malta</td></tr><tr><td>Joined</td><td>2004</td></tr><tr><td>Population</td><td>416,333</td></tr><tr><td>km²</td><td>316</td></tr><tr><td>GDP</td><td>23,583</td></tr><tr><td>Currency</td><td>Euro</td></tr></table>",{"$f":"_xll.GeodesiX.UDF.Geocode(F$1,$A19)","v":"OK"},"Malta","Valletta","Repubblika ta' Malta",2004,"416,333",316,"23,583","Euro","<tr><td>State</td><td>Malta</td></tr>","<tr><td>Capital</td><td>Valletta</td></tr>","<tr><td>Constitutional name</td><td>Repubblika ta' Malta</td></tr>","<tr><td>Joined</td><td>2004</td></tr>","<tr><td>Population</td><td>416,333</td></tr>","<tr><td>km²</td><td>316</td></tr>","<tr><td>GDP</td><td>23,583</td></tr>","<tr><td>Currency</td><td>Euro</td></tr>"]
["Amsterdam, Netherlands",{"$f":"_xll.GeodesiX.UDF.Geocode(B$1,$A20)","v":52.367573399999998},{"$f":"_xll.GeodesiX.UDF.Geocode(C$1,$A20)","v":4.9041389000000004},"http://upload.wikimedia.org/wikipedia/commons/thumb/2/20/Flag_of_the_Netherlands.svg/22px-Flag_of_the_Netherlands.svg.png","<table><tr><td>State</td><td>Netherlands</td></tr><tr><td>Capital</td><td>Amsterdam</td></tr><tr><td>Constitutional name</td><td>Koninkrijk der Nederlanden</td></tr><tr><td>Joined</td><td>Founder</td></tr><tr><td>Population</td><td>16,576,800</td></tr><tr><td>km²</td><td>41,526</td></tr><tr><td>GDP</td><td>39,937</td></tr><tr><td>Currency</td><td>Euro</td></tr></table>",{"$f":"_xll.GeodesiX.UDF.Geocode(F$1,$A20)","v":"OK"},"Netherlands","Amsterdam","Koninkrijk der Nederlanden","Founder","16,576,800","41,526","39,937","Euro","<tr><td>State</td><td>Netherlands</td></tr>","<tr><td>Capital</td><td>Amsterdam</td></tr>","<tr><td>Constitutional name</td><td>Koninkrijk der Nederlanden</td></tr>","<tr><td>Joined</td><td>Founder</td></tr>","<tr><td>Population</td><td>16,576,800</td></tr>","<tr><td>km²</td><td>41,526</td></tr>","<tr><td>GDP</td><td>39,937</td></tr>","<tr><td>Currency</td><td>Euro</td></tr>"]
["Warsaw, Poland",{"$f":"_xll.GeodesiX.UDF.Geocode(B$1,$A21)","v":52.2296756},{"$f":"_xll.GeodesiX.UDF.Geocode(C$1,$A21)","v":21.012228700000001},"http://upload.wikimedia.org/wikipedia/commons/thumb/1/12/Flag_of_Poland.svg/22px-Flag_of_Poland.svg.png","<table><tr><td>State</td><td>Poland</td></tr><tr><td>Capital</td><td>Warsaw</td></tr><tr><td>Constitutional name</td><td>Rzeczpospolita Polska</td></tr><tr><td>Joined</td><td>2004</td></tr><tr><td>Population</td><td>38,163,895</td></tr><tr><td>km²</td><td>312,683</td></tr><tr><td>GDP</td><td>18,072</td></tr><tr><td>Currency</td><td>Polish złoty</td></tr></table>",{"$f":"_xll.GeodesiX.UDF.Geocode(F$1,$A21)","v":"OK"},"Poland","Warsaw","Rzeczpospolita Polska",2004,"38,163,895","312,683","18,072","Polish złoty","<tr><td>State</td><td>Poland</td></tr>","<tr><td>Capital</td><td>Warsaw</td></tr>","<tr><td>Constitutional name</td><td>Rzeczpospolita Polska</td></tr>","<tr><td>Joined</td><td>2004</td></tr>","<tr><td>Population</td><td>38,163,895</td></tr>","<tr><td>km²</td><td>312,683</td></tr>","<tr><td>GDP</td><td>18,072</td></tr>","<tr><td>Currency</td><td>Polish złoty</td></tr>"]
["Lisbon, Portugal",{"$f":"_xll.GeodesiX.UDF.Geocode(B$1,$A22)","v":38.722252400000002},{"$f":"_xll.GeodesiX.UDF.Geocode(C$1,$A22)","v":-9.1393366},"http://upload.wikimedia.org/wikipedia/commons/thumb/5/5c/Flag_of_Portugal.svg/22px-Flag_of_Portugal.svg.png","<table><tr><td>State</td><td>Portugal</td></tr><tr><td>Capital</td><td>Lisbon</td></tr><tr><td>Constitutional name</td><td>República Portuguesa</td></tr><tr><td>Joined</td><td>1986</td></tr><tr><td>Population</td><td>11,317,192</td></tr><tr><td>km²</td><td>92,391</td></tr><tr><td>GDP</td><td>21,858</td></tr><tr><td>Currency</td><td>Euro</td></tr></table>",{"$f":"_xll.GeodesiX.UDF.Geocode(F$1,$A22)","v":"OK"},"Portugal","Lisbon","República Portuguesa",1986,"11,317,192","92,391","21,858","Euro","<tr><td>State</td><td>Portugal</td></tr>","<tr><td>Capital</td><td>Lisbon</td></tr>","<tr><td>Constitutional name</td><td>República Portuguesa</td></tr>","<tr><td>Joined</td><td>1986</td></tr>","<tr><td>Population</td><td>11,317,192</td></tr>","<tr><td>km²</td><td>92,391</td></tr>","<tr><td>GDP</td><td>21,858</td></tr>","<tr><td>Currency</td><td>Euro</td></tr>"]
["Bucharest, Romania",{"$f":"_xll.GeodesiX.UDF.Geocode(B$1,$A23)","v":44.426767400000003},{"$f":"_xll.GeodesiX.UDF.Geocode(C$1,$A23)","v":26.1025384},"http://upload.wikimedia.org/wikipedia/commons/thumb/7/73/Flag_of_Romania.svg/22px-Flag_of_Romania.svg.png","<table><tr><td>State</td><td>Romania</td></tr><tr><td>Capital</td><td>Bucharest</td></tr><tr><td>Constitutional name</td><td>România</td></tr><tr><td>Joined</td><td>2007</td></tr><tr><td>Population</td><td>21,466,174</td></tr><tr><td>km²</td><td>238,391</td></tr><tr><td>GDP</td><td>11,917</td></tr><tr><td>Currency</td><td>Romanian leu</td></tr></table>",{"$f":"_xll.GeodesiX.UDF.Geocode(F$1,$A23)","v":"OK"},"Romania","Bucharest","România",2007,"21,466,174","238,391","11,917","Romanian leu","<tr><td>State</td><td>Romania</td></tr>","<tr><td>Capital</td><td>Bucharest</td></tr>","<tr><td>Constitutional name</td><td>România</td></tr>","<tr><td>Joined</td><td>2007</td></tr>","<tr><td>Population</td><td>21,466,174</td></tr>","<tr><td>km²</td><td>238,391</td></tr>","<tr><td>GDP</td><td>11,917</td></tr>","<tr><td>Currency</td><td>Romanian leu</td></tr>"]
["Bratislava, Slovakia",{"$f":"_xll.GeodesiX.UDF.Geocode(B$1,$A24)","v":48.148596499999996},{"$f":"_xll.GeodesiX.UDF.Geocode(C$1,$A24)","v":17.107747700000001},"http://upload.wikimedia.org/wikipedia/commons/thumb/e/e6/Flag_of_Slovakia.svg/22px-Flag_of_Slovakia.svg.png","<table><tr><td>State</td><td>Slovakia</td></tr><tr><td>Capital</td><td>Bratislava</td></tr><tr><td>Constitutional name</td><td>Slovenská republika</td></tr><tr><td>Joined</td><td>2004</td></tr><tr><td>Population</td><td>5,424,057</td></tr><tr><td>km²</td><td>49,037</td></tr><tr><td>GDP</td><td>21,244</td></tr><tr><td>Currency</td><td>Euro</td></tr></table>",{"$f":"_xll.GeodesiX.UDF.Geocode(F$1,$A24)","v":"OK"},"Slovakia","Bratislava","Slovenská republika",2004,"5,424,057","49,037","21,244","Euro","<tr><td>State</td><td>Slovakia</td></tr>","<tr><td>Capital</td><td>Bratislava</td></tr>","<tr><td>Constitutional name</td><td>Slovenská republika</td></tr>","<tr><td>Joined</td><td>2004</td></tr>","<tr><td>Population</td><td>5,424,057</td></tr>","<tr><td>km²</td><td>49,037</td></tr>","<tr><td>GDP</td><td>21,244</td></tr>","<tr><td>Currency</td><td>Euro</td></tr>"]
["Ljubljana, Slovenia",{"$f":"_xll.GeodesiX.UDF.Geocode(B$1,$A25)","v":46.056946500000002},{"$f":"_xll.GeodesiX.UDF.Geocode(C$1,$A25)","v":14.505751500000001},"http://upload.wikimedia.org/wikipedia/commons/thumb/f/f0/Flag_of_Slovenia.svg/22px-Flag_of_Slovenia.svg.png","<table><tr><td>State</td><td>Slovenia</td></tr><tr><td>Capital</td><td>Ljubljana</td></tr><tr><td>Constitutional name</td><td>Republika Slovenija</td></tr><tr><td>Joined</td><td>2004</td></tr><tr><td>Population</td><td>2,054,119</td></tr><tr><td>km²</td><td>20,273</td></tr><tr><td>GDP</td><td>27,654</td></tr><tr><td>Currency</td><td>Euro</td></tr></table>",{"$f":"_xll.GeodesiX.UDF.Geocode(F$1,$A25)","v":"OK"},"Slovenia","Ljubljana","Republika Slovenija",2004,"2,054,119","20,273","27,654","Euro","<tr><td>State</td><td>Slovenia</td></tr>","<tr><td>Capital</td><td>Ljubljana</td></tr>","<tr><td>Constitutional name</td><td>Republika Slovenija</td></tr>","<tr><td>Joined</td><td>2004</td></tr>","<tr><td>Population</td><td>2,054,119</td></tr>","<tr><td>km²</td><td>20,273</td></tr>","<tr><td>GDP</td><td>27,654</td></tr>","<tr><td>Currency</td><td>Euro</td></tr>"]
["Madrid, Spain",{"$f":"_xll.GeodesiX.UDF.Geocode(B$1,$A26)","v":40.416775399999999},{"$f":"_xll.GeodesiX.UDF.Geocode(C$1,$A26)","v":-3.7037901999999998},"http://upload.wikimedia.org/wikipedia/commons/thumb/9/9a/Flag_of_Spain.svg/22px-Flag_of_Spain.svg.png","<table><tr><td>State</td><td>Spain</td></tr><tr><td>Capital</td><td>Madrid</td></tr><tr><td>Constitutional name</td><td>Reino de España</td></tr><tr><td>Joined</td><td>1986</td></tr><tr><td>Population</td><td>46,087,170</td></tr><tr><td>km²</td><td>506,030</td></tr><tr><td>GDP</td><td>31,963</td></tr><tr><td>Currency</td><td>Euro</td></tr></table>",{"$f":"_xll.GeodesiX.UDF.Geocode(F$1,$A26)","v":"OK"},"Spain","Madrid","Reino de España",1986,"46,087,170","506,030","31,963","Euro","<tr><td>State</td><td>Spain</td></tr>","<tr><td>Capital</td><td>Madrid</td></tr>","<tr><td>Constitutional name</td><td>Reino de España</td></tr>","<tr><td>Joined</td><td>1986</td></tr>","<tr><td>Population</td><td>46,087,170</td></tr>","<tr><td>km²</td><td>506,030</td></tr>","<tr><td>GDP</td><td>31,963</td></tr>","<tr><td>Currency</td><td>Euro</td></tr>"]
["Stockholm, Sweden",{"$f":"_xll.GeodesiX.UDF.Geocode(B$1,$A27)","v":59.329323500000001},{"$f":"_xll.GeodesiX.UDF.Geocode(C$1,$A27)","v":18.068580799999999},"http://upload.wikimedia.org/wikipedia/commons/thumb/4/4c/Flag_of_Sweden.svg/22px-Flag_of_Sweden.svg.png","<table><tr><td>State</td><td>Sweden</td></tr><tr><td>Capital</td><td>Stockholm</td></tr><tr><td>Constitutional name</td><td>Konungariket Sverige</td></tr><tr><td>Joined</td><td>1995</td></tr><tr><td>Population</td><td>9,347,899</td></tr><tr><td>km²</td><td>449,964</td></tr><tr><td>GDP</td><td>35,964</td></tr><tr><td>Currency</td><td>Swedish krona</td></tr></table>",{"$f":"_xll.GeodesiX.UDF.Geocode(F$1,$A27)","v":"OK"},"Sweden","Stockholm","Konungariket Sverige",1995,"9,347,899","449,964","35,964","Swedish krona","<tr><td>State</td><td>Sweden</td></tr>","<tr><td>Capital</td><td>Stockholm</td></tr>","<tr><td>Constitutional name</td><td>Konungariket Sverige</td></tr>","<tr><td>Joined</td><td>1995</td></tr>","<tr><td>Population</td><td>9,347,899</td></tr>","<tr><td>km²</td><td>449,964</td></tr>","<tr><td>GDP</td><td>35,964</td></tr>","<tr><td>Currency</td><td>Swedish krona</td></tr>"]

{"sheet":"$GeoCache$","index":3,"n_rows":27,"n_cols":16,"rows_kept":27,"cut":false,"hidden":true,"merged":[]}
[28,"status","administrative_area_level_1 political","administrative_area_level_2 political","administrative_area_level_3 political","boundsne","boundssw","country political","formatted_address","latitude","locality political","location_type","longitude","place_id","postal_code postal_code_prefix","status"]
["Amsterdam, Netherlands","OK","North Holland","Government of Amsterdam",null,"52.4311573,5.0791619","52.278174,4.7287589","Netherlands","Amsterdam, Netherlands",52.367573399999998,"Amsterdam","APPROXIMATE",4.9041389000000004,"ChIJVXealLU_xkcRja_At0z9AGY"]
["Athens, Greece","OK",null,null,"Central Athens Regional Unit","38.0328563,23.7896925","37.9488181,23.6869862","Greece","Athens, Greece",37.983809600000001,"Athens","APPROXIMATE",23.727538800000001,"ChIJ8UNwBh-9oRQR3Y1mdkU1Nic"]
["Berlin, Germany","OK","Berlin",null,"Kreisfreie Stadt Berlin","52.6754542,13.7611175","52.338234,13.088346","Germany","Berlin, Germany",52.520006600000002,"Berlin","APPROXIMATE",13.404954,"ChIJAVkDPzdOqEcRcDteW0YgIQQ"]
["Bratislava, Slovakia","OK","Bratislava Region",null,null,"48.2650461,17.2856594","48.0065146,16.9461747","Slovakia","Bratislava, Slovakia",48.148596499999996,"Bratislava","APPROXIMATE",17.107747700000001,"ChIJl2HKCjaJbEcRaEOI_YKbH2M"]
["Brussels, Belgium","OK","Brussels",null,null,"50.9139024,4.4822716","50.763681,4.2437655","Belgium","Brussels, Belgium",50.826045299999997,null,"APPROXIMATE",4.3802051999999998,"ChIJ_58PdIbEw0cRMIBML6uZAAE"]
["Bucharest, Romania","OK","Bucharest","Bucharest",null,"44.541407,26.225575","44.3342445,25.9637001","Romania","Bucharest, Romania",44.426767400000003,"Bucharest","APPROXIMATE",26.1025384,"ChIJT608vzr5sUARKKacfOMyBqw"]
["Budapest, Hungary","OK",null,null,null,"47.6130119,19.3345049","47.349415,18.9261011","Hungary","Budapest, Hungary",47.497911999999999,"Budapest","APPROXIMATE",19.040234999999999,"ChIJyc_U0TTDQUcRYBEeDCnEAAQ"]
["Copenhagen, Denmark","OK",null,null,null,"55.7270937,12.7342654","55.615441,12.4533824","Denmark","Copenhagen, Denmark",55.676096800000003,"Copenhagen","APPROXIMATE",12.568337100000001,"ChIJIz2AXDxTUkYRuGeU5t1-3QQ"]
["Dublin, Ireland","OK","County Dublin",null,null,"53.4252101,-6.0439235","53.2234301,-6.4474847","Ireland","Dublin, Ireland",53.3498053,"Dublin","APPROXIMATE",-6.2603096999999996,"ChIJL6wn6oAOZ0gRoHExl6nHAAo"]
["Helsinki, Finland","OK","Uusimaa","Helsinki","Helsinki","60.2978389,25.2544849","59.9224887,24.7828758","Finland","Helsinki, Finland",60.169855699999999,"Helsinki","APPROXIMATE",24.938379000000001,"ChIJkQYhlscLkkYRY_fiO4S9Ts0"]
["Lisbon, Portugal","OK","Lisbon","Lisbon",null,"38.7967595,-9.089636","38.6913994,-9.2298356","Portugal","Lisbon, Portugal",38.722252400000002,"Lisbon","APPROXIMATE",-9.1393366,"ChIJO_PkYRozGQ0R0DaQ5L3rAAQ"]
["Ljubljana, Slovenia","OK","Ljubljana",null,null,"46.1422017,14.6446963","45.990033,14.4195019","Slovenia","Ljubljana, Slovenia",46.056946500000002,"Ljubljana","APPROXIMATE",14.505751500000001,"ChIJ0YaYlvUxZUcRIOw_ghz4AAQ"]
["Luxembourg, Luxembourg","OK",null,null,null,"50.18282,6.5309701","49.447879,5.7356699","Luxembourg","Luxembourg",49.815272999999998,null,"APPROXIMATE",6.1295830000000002,"ChIJRyEhyrlFlUcR75LTAvZg22Q"]
["Madrid, Spain","OK","Community of Madrid","Madrid",null,"40.5638447,-3.5249115","40.3120639,-3.8341618","Spain","Madrid, Spain",40.416775399999999,"Madrid","APPROXIMATE",-3.7037901999999998,"ChIJgTwKgJcpQg0RaSKMYcHeNsQ"]
["Nicosia, Cyprus","OK","Nicosia",null,null,"35.2323172,33.4762967","35.1521879,33.3185077","Cyprus","Nicosia, Cyprus",35.1855659,"Nicosia","APPROXIMATE",33.382276400000002,"ChIJVU1JymcX3hQRpcARA5ykXls"]
["Paris, France","OK","Île-de-France","Paris",null,"48.9021475,2.4698509","48.8155622,2.2242191","France","Paris, France",48.857547500000003,"Paris","APPROXIMATE",2.3513765000000002,"ChIJD7fiBh9u5kcRYJSMaMOCCwQ"]
["Prague, Czech Republic","OK","Prague","Hlavní město Praha",null,"50.177403,14.7067945","49.9419363,14.2244533","Czechia","Prague, Czechia",50.075538100000003,"Prague","APPROXIMATE",14.4378005,"ChIJi3lwCZyTC0cRkEAWZg-vAAQ"]
["Riga, Latvia","OK",null,null,null,"57.0861688,24.3245043","56.8573462,23.9336426","Latvia","Riga, Latvia",56.967694100000003,"Riga","APPROXIMATE",24.105622100000001,"ChIJ7T0H5bDP7kYRMP7yaM3PAAQ"]
["Rome, Italy","OK","Lazio","Metropolitan City of Rome Capital","Rome","42.0505462,12.7302888","41.769596,12.341707","Italy","Rome, Metropolitan City of Rome Capital, Italy",41.896706799999997,"Rome","APPROXIMATE",12.4822025,"ChIJu46S-ZZhLxMROG5lkwZ3D7k"]
["Sofia, Bulgaria","OK","Sofia City Province",null,null,"42.7877752,23.4569049","42.6030891,23.1909885","Bulgaria","Sofia, Bulgaria",42.697708200000001,"Sofia","APPROXIMATE",23.3218675,"ChIJ9Xsxy4KGqkARYF6_aRKgAAQ"]
["Stockholm, Sweden","OK","Stockholm County",null,null,"59.4278409,18.198229","59.224443,17.765876","Sweden","Stockholm, Sweden",59.329323500000001,"Stockholm","APPROXIMATE",18.068580799999999,"ChIJywtkGTF2X0YRZnedZ9MnDag"]
["Tallinn, Estonia","OK","Harju County",null,null,"59.591577,24.9262838","59.3518008,24.5501939","Estonia","Tallinn, Estonia",59.436960800000001,"Tallinn","APPROXIMATE",24.7535746,"ChIJvxZW35mUkkYRcGL8GG2zAAQ"]
["Valletta, Malta","OK",null,null,null,"35.9036855,14.5204815","35.8932353,14.5053349","Malta","Valletta, Malta",35.899237499999998,"Valletta","APPROXIMATE",14.5140996,"ChIJxUeGHShFDhMRF8lC4o7TWnQ"]
["Vienna Austria","OK","Vienna","Vienna",null,"48.322563,16.5774545","48.1179032,16.1818304","Austria","Vienna, Austria",48.208069600000002,"Vienna","APPROXIMATE",16.371309499999999,"ChIJn8o2UZ4HbUcRRluiUYrlwv0"]
["Vilnius, Lithuania","OK","Vilnius County","Vilnius City Municipality",null,"54.832544,25.4814883","54.5688249,25.0245791","Lithuania","Vilnius, Vilnius City Municipality, Lithuania",54.687155500000003,"Vilnius","APPROXIMATE",25.279651399999999,"ChIJ9QhkXPuT3UYRQNzpcIzRAAQ"]
["Warsaw, Poland","OK","Masovian Voivodeship","Warsaw",null,"52.3681538,21.2711512","52.0978499,20.8516883","Poland","Warsaw, Poland",52.2296756,"Warsaw","APPROXIMATE",21.012228700000001,"ChIJAZ-GmmbMHkcR_NPqiCq-8HI",3]